Cogmind - Beta 17 @@@ ROGUE MODE // 2026.06.28 @ 12:34:28 Player: LN-5RVR Result: Smashed by cave-in Performance ------------- Evolutions (0) 0 Regions Visited (3) 600 Robots Destroyed (8) 40 Value Destroyed (207) 207 Prototype IDs (0) 0 Alien Tech Used (0) 0 Bonus (92) 92 TOTAL SCORE: 939 Bonus ------- Follower Combat Kills 99 Friendly Fire -7 Cogmind --------- Core Integrity 0/250 Matter 275/300 Energy 76/100 System Corruption 0% Temperature Cool (8) Movement Treading (160) Location -10/Subcaves Parts ------- > --- POWER (1) -------- Subdweller Power Source > --- PROPULSION (2) --- Light Treads Light Treads > --- UTILITY (2) ------ Small Storage Unit Targeting Computer > --- WEAPON (2) ------- Subdweller Beam Cannon Battle Cannon > --- INVENTORY (8) ---- Light Nuclear Core Light Treads Light Treads Wheel Compact Wheel Targeting Computer Beam Rifle Battle Rifle Peak State ------------ > --- POWER ------------ Ion Engine > --- PROPULSION ------- Light Treads Light Treads > --- UTILITY ---------- Small Storage Unit Targeting Computer > --- WEAPON ----------- Beam Rifle Beamcaster > --- INVENTORY -------- Ion Engine Light Nuclear Core Light Treads Light Treads Wheel Wheel Compact Wheel Assault Rifle [Rating: 13] Favorites ----------- Power Ion Engine Engine Ion Engine Propulsion Light Treads Treads Light Treads Utility Small Storage Unit Storage Small Storage Unit Processor Targeting Computer Weapon Light Assault Rifle Energy Gun Beam Rifle Energy Cannon Subdweller Beam Cannon Ballistic Gun Light Assault Rifle Ballistic Cannon Battle Cannon Build | -11 -10 -10 -10 ------- Run | Yrd Mat Min Sub Slots Evolved . | . . . . Power . | . . . . Propulsion . | . . . . Utility . | . . . . Weapon . | . . . . Parts Attached 14 | 6 1 3 4 Power 3 | 1 . . 2 Engine 3 | 1 . . 2 Core . | . . . . Reactor . | . . . . Propulsion 2 | 2 . . . Treads 2 | 2 . . . Leg . | . . . . Wheel . | . . . . Hover . | . . . . Flight . | . . . . Utility 2 | 1 . 1 . Device . | . . . . Storage 1 | 1 . . . Processor 1 | . . 1 . Hackware . | . . . . Protection . | . . . . Artifact . | . . . . Weapon 7 | 2 1 2 2 Energy Gun 2 | . . 2 . Energy Cannon 1 | . . . 1 Ballistic Gun 3 | 2 1 . . Ballistic Cannon 1 | . . . 1 Launcher . | . . . . Special Weapon . | . . . . Impact Weapon . | . . . . Slashing Weapon . | . . . . Piercing Weapon . | . . . . Special Melee Weapon . | . . . . Unidentified Prototypes . | . . . . Parts Lost 1 | . . . 1 Power 1 | . . . 1 Propulsion . | . . . . Utility . | . . . . Weapon . | . . . . Highest Loss Streak 1 | . . . 1 To Critical Strikes . | . . . . Average Backups 6 | 2 4 5 7 Power 1 | . 1 1 1 Propulsion 3 | 1 2 2 4 Utility . | . . . 1 Weapon 1 | . 1 1 1 Tool/Special . | . . . . Unused Backups 9 | . . 1 8 Power 1 | . . . 1 Propulsion 5 | . . 1 4 Utility 1 | . . . 1 Weapon 2 | . . . 2 Tool/Special . | . . . . Average Slot Usage (%) 93 | . 85 87 99 Engine 13 | . 14 14 13 Treads 28 | . 28 28 28 Storage 14 | . 14 14 14 Processor 8 | . . 2 14 Energy Gun 4 | . . 5 3 Energy Cannon 7 | . . . 12 Ballistic Gun 10 | . 28 22 . Ballistic Cannon 6 | . . . 11 Peak Build Rating 13 | 6 6 13 13 Average Rating 8 | 4 6 7 10 On Entrance 6 | . 6 6 13 Avg Prop Armor Cover (%) . | . . . . Naked Turns . | . . . . Heaviest Build 21 | 13 13 18 21 Greatest Support 40 | 40 40 40 40 Greatest Overweight (x) . | . . . . Average Overweight (x) . | . . . . Largest Inventory Capacity 8 | 8 8 8 8 Average Capacity 7 | 7 8 8 8 Most Carried 8 | 4 4 8 8 Average Carried 6 | 2 4 5 7 Final Capacity 8 | 8 8 8 8 Final Carried 8 | 4 4 8 8 Class Distribution -------------------- 100% | Mutant Dominant Class ---------------- Mutant | -10/Materials Mutant | -10/Mines Mutant | -10/Subcaves Resources | -11 -10 -10 -10 ----------- Run | Yrd Mat Min Sub Matter Collected 409 | 112 . 212 85 Remotely . | . . . . Salvage Created 236 | . . 64 172 Parts 17 | . . 4 13 Haulers Intercepted . | . . . . Recyclers Shooed . | . . . . Parts Field Recycled . | . . . . Retrieved Matter . | . . . . Parts Self-Destructed 11 | . . . 11 Prevented . | . . . . Parts Restored . | . . . . Kills | -11 -10 -10 -10 ------- Run | Yrd Mat Min Sub Combat Hostiles Destroyed 8 | . . 2 6 Guns 4 | . . 2 2 Cannons 4 | . . . 4 Classes Destroyed 3 | . . 2 1 Swarmer 4 | . . 1 3 Grunt 1 | . . 1 . Subdweller 3 | . . . 3 Best Kill Streak 2 | . . 1 2 Combat Bots Only 2 | . . 1 2 Max Kills in Single Turn 1 | . . 1 1 Gunslinging . | . . . . Exploded . | . . . . Melee . | . . . . Uniques/NPCs Destroyed . | . . . . Combat | -11 -10 -10 -10 -------- Run | Yrd Mat Min Sub Hostile Shots Fired 125 | . . 23 102 Missed 43 | . . 9 34 Hits 82 | . . 14 68 Projectile 82 | . . 14 68 Damage Taken 795 | . . 180 615 Core 288 | . . 72 216 Absorbed by Shields . | . . . . Core Remaining (%) 100 | 100 . . . Volleys Fired 35 | . 1 11 23 Largest 2 | . 2 2 2 Hottest 131 | . 40 131 131 Shots Fired 70 | . 2 22 46 Gun 42 | . 2 22 18 Cannon 28 | . . . 28 Launcher . | . . . . Special . | . . . . Kinetic 36 | . 2 20 14 Thermal 34 | . . 2 32 Explosive . | . . . . Electromagnetic . | . . . . Robot Hit Streak 16 | . 2 3 16 Robot Miss Streak 5 | . . 2 5 Penetration Max . | . . . . Secondary Targets . | . . . . Shots Hit Robots 38 | . 2 11 25 Core Hits 13 | . . 5 8 Critical Kills . | . . . . Critical Parts Destroyed . | . . . . Critical Strikes 2 | . . . 2 Burn 2 | . . . 2 Melee Attacks . | . . . . Impact . | . . . . Slashing . | . . . . Piercing . | . . . . Sneak Attacks . | . . . . Combat Hostiles . | . . . . Follow-up Attacks . | . . . . Damage Inflicted 617 | . 16 98 503 Guns 392 | . 16 98 278 Cannons 225 | . . . 225 Explosions . | . . . . Melee . | . . . . Ramming . | . . . . Kinetic 233 | . 16 98 119 Thermal 384 | . . . 384 Explosive . | . . . . Electromagnetic . | . . . . Impact . | . . . . Slashing . | . . . . Piercing . | . . . . Highest Corruption . | . . . . Average Corruption . | . . . . Corruption Purged . | . . . . Corruption Blocked . | . . . . Overload Shots . | . . . . Overflow Damage 3 | . . . 3 Projectiles 3 | . . . 3 Explosions . | . . . . Melee . | . . . . Knockbacks 1 | . . . 1 Impact . | . . . . Kinetic 1 | . . . 1 Secondary . | . . . . Self-Inflicted Damage . | . . . . Shots . | . . . . Rammed . | . . . . Targets Rammed . | . . . . Kicked . | . . . . Crushed . | . . . . Highest Temperature 108 | . . 69 108 Average Temperature 30 | . . 21 34 Received Heat Transfer 228 | . . 63 165 Siege Activations . | . . . . Martial Activations . | . . . . Shielding Activations . | . . . . Robots Disrupted . | . . . . Combat Hostiles . | . . . . Robots Corrupted . | . . . . Combat Hostiles . | . . . . Parts Fried . | . . . . Impact Corruptions . | . . . . Robots Melted . | . . . . Combat Hostiles . | . . . . Parts Melted 3 | . . . 3 Heat Transferred 888 | . . . 888 Parts Sabotaged . | . . . . Parts Stolen . | . . . . Parts Stripped . | . . . . Power Chain Reactions . | . . . . Alert | -11 -10 -10 -10 ------- Run | Yrd Mat Min Sub Maximum Alert Level . | . . . . Low Security (%) 100 | 100 100 100 . Level 1 . | . . . . Level 2 . | . . . . Level 3 . | . . . . Level 4 . | . . . . Level 5 . | . . . . High Security . | . . . . Max Security . | . . . . Peak Influence 117 | . . 117 . Initial . | . . . . Average 28 | . . 40 . Influence Increases 313 | . . 178 135 Destroy 0b10 Robot/C 200 | . . 140 60 Destroy Leader 30 | . . 30 . Allied During Kill 8 | . . 8 . Lose Combat Pursuer 75 | . . . 75 Influence Decreases 274 | . . 178 96 Time Decay 254 | . . 158 96 Lost Ally 20 | . . 20 . Squads Dispatched 2 | . 2 . . Investigation . | . . . . Extermination . | . . . . Reinforcement 2 | . 2 . . Assault . | . . . . Garrison . | . . . . Intercept . | . . . . Searches Triggered . | . . . . Construction Impeded . | . . . . Haulers Reinforced . | . . . . Active Scanning Responses . | . . . . Cargo Convoy Interrupts . | . . . . Stealth | -11 -10 -10 -10 --------- Run | Yrd Mat Min Sub Distress Signals . | . . . . Communications Jammed . | . . . . Distress Signals . | . . . . Times Spotted 18 | . 1 7 10 Peak Tracking Total 6 | . 2 3 6 Tactical Retreats 3 | . . . 3 Traps | -11 -10 -10 -10 ------- Run | Yrd Mat Min Sub Traps Triggered . | . . . . Indirectly . | . . . . Trap Hack Attempts . | . . . . Triggered . | . . . . Disarmed . | . . . . Reprogrammed . | . . . . Reused . | . . . . Traps Extracted . | . . . . Installed . | . . . . Triggered . | . . . . Machines | -11 -10 -10 -10 ---------- Run | Yrd Mat Min Sub Machines Disabled 2 | . . . 2 Max in Single Turn 1 | . . . 1 Machines Repaired . | . . . . Machines Dismantled . | . . . . Machines Sabotaged . | . . . . Overloaded Fab Kills . | . . . . Hacking | -11 -10 -10 -10 --------- Run | Yrd Mat Min Sub Machines Accessed 1 | . 1 . . Terminals 1 | . 1 . . Fabricators . | . . . . Repair Stations . | . . . . Recycling Units . | . . . . Scanalyzers . | . . . . Garrison Access . | . . . . Total Hacks 2 | . 2 . . Successful . | . . . . Failed 2 | . 2 . . Catastrophic . | . . . . Database Lockouts . | . . . . Manual 2 | . 2 . . Terminals 2 | . 2 . . Fabricators . | . . . . Repair Stations . | . . . . Recycling Units . | . . . . Scanalyzers . | . . . . Garrison Access . | . . . . Terminal Hacks . | . . . . Fabricator Hacks . | . . . . Repair Station Hacks . | . . . . Recycling Unit Hacks . | . . . . Scanalyzer . | . . . . Garrison Access Hacks . | . . . . Unauthorized Hacks . | . . . . Terminals . | . . . . Fabricators . | . . . . Repair Stations . | . . . . Recycling Units . | . . . . Scanalyzers . | . . . . Garrison Access . | . . . . Data Cores Recovered . | . . . . Used . | . . . . Hacking Detections 1 | . 1 . . Full Trace Events . | . . . . Feedback Events . | . . . . Feedback Blocked . | . . . . Robot Schematics Acquired . | . . . . Robots Built . | . . . . Authchips . | . . . . Time . | . . . . Total Robot Build Rating . | . . . . Part Schematics Acquired . | . . . . Parts Built . | . . . . Authchips . | . . . . Time . | . . . . Total Part Build Rating . | . . . . Part Studies Acquired . | . . . . Parts Repaired . | . . . . Time . | . . . . Parts Recycled . | . . . . Recycled Matter . | . . . . Retrieved Matter . | . . . . Retrieved Components . | . . . . Parts Scanalyzed . | . . . . Part Schematics Acquired . | . . . . Parts Damaged . | . . . . Bothacking | -11 -10 -10 -10 ------------ Run | Yrd Mat Min Sub Used RIF Installer . | . . . . Robots Hacked . | . . . . Non-combat . | . . . . Combat . | . . . . Robot Hacks Applied . | . . . . Relay Couplers Released . | . . . . Fabnet Peak Effective % . | . . . . Robots Rewired . | . . . . Allies Hacked . | . . . . Hacks Repelled . | . . . . Allies | -11 -10 -10 -10 -------- Run | Yrd Mat Min Sub Total Allies 3 | . . 3 . Largest Group 3 | . . 3 . Highest-Rated Group 40 | . . 40 . Highest-Rated Ally 16 | . . 16 . Total Orders . | . . . . Ally Attacks 16 | . . 16 . Total Damage 207 | . . 207 . Kills 5 | . . 5 . Allies Corrupted . | . . . . Allies Melted . | . . . . Intel | -11 -10 -10 -10 ------- Run | Yrd Mat Min Sub Active Infowar (turns) . | . . . . Robot Analysis Total . | . . . . Derelict Logs Recovered 3 | . . 2 1 Drone Launches . | . . . . Drone Recoveries . | . . . . Exploration | -11 -10 -10 -10 ------------- Run | Yrd Mat Min Sub Turns Passed 1491 | 86 117 496 792 Spaces Moved 813 | 45 70 279 419 Core 3 | 3 . . . Treads 810 | 42 70 279 419 Legs . | . . . . Wheels . | . . . . Hover . | . . . . Flight . | . . . . Fastest Speed 50 | 50 160 160 160 Average Speed 159 | 152 160 160 160 Slowest Speed 160 | 160 160 160 160 Overloaded Moves . | . . . . Propulsion Burnouts . | . . . . Robots Hopped . | . . . . Potential Cave-ins . | . . . . Cave-ins Triggered 1 | . . . 1 Exploration Rate (%) 26 | 3 20 54 28 Regions Visited 3 Branch Regions 2 Pre-discovered Areas . | . . . . Known Exits Taken . | . . . . Unknown Exits Taken 3 | 1 1 1 . Scrap Searched 1 | . . 1 . Spaces Dug 1 | . . . 1 Terrain Destroyed 6 | . . . 6 Melee . | . . . . Projectile 6 | . . . 6 AOE . | . . . . Terrain Rammed . | . . . . Walls Destroyed . | . . . . Machines Disabled . | . . . . Actions | -11 -10 -10 -10 --------- Run | Yrd Mat Min Sub Total 936 | 59 73 310 494 Wait 62 | 5 2 10 45 Move 810 | 44 69 278 419 Hop . | . . . . Pick Up 12 | 4 . 6 2 Fast Attach 7 | 6 . 1 . Attach 1 | . . . 1 Detach . | . . . . Swap 6 | . 1 2 3 Drop 3 | . . 2 1 Fire 35 | . 1 11 23 Melee . | . . . . Ram . | . . . . Kick . | . . . . Crush . | . . . . Escape Stasis . | . . . . Rewire . | . . . . Trap . | . . . . Miscellaneous . | . . . . Route ------- -11/Scrapyard -10/Materials -10/Mines (discovered 2 exits: *Mat / [*Sub]) -10/Subcaves (discovered 2 exits: [*Mat] / *Rec) History --------- Turn | Location | Event 59 | -11/Scrapyard | Discovered new exit (range 15) 87 | -11/Scrapyard | Entered Materials 179 | -10/Materials | Discovered new exit (range 12) 204 | -10/Materials | Entered Mines 233 | -10/Mines | Assisted by bots powering up and referring to "LRC-V3" 316 | -10/Mines | Build established: Mutant 444 | -10/Mines | Identified exit to Materials 501 | -10/Mines | Learned location of 1 exit from Materials 568 | -10/Mines | Joined a pair of Derelicts in attacking an 0b10 outpost 681 | -10/Mines | Discovered new exit (range 8) 700 | -10/Mines | Entered Subcaves 702 | -10/Subcaves | Identified exit to Recycling 740 | -10/Subcaves | Core integrity fell below 50% 812 | -10/Subcaves | Shifting Twisted Machinery released Battle Cannon 813 | -10/Subcaves | Shifting Twisted Machinery released Battle Rifle 941 | -10/Subcaves | A swath of the cavern ceiling suddenly collapsed 963 | -10/Subcaves | Discovered new exit (range 8) 989 | -10/Subcaves | Ambushed by Subdwellers from Twisted Machinery 1269 | -10/Subcaves | Core integrity fell below 20% 1493 | -10/Subcaves | Crushed by falling debris 1493 | -10/Subcaves | Smashed by cave-in Last Messages --------------- 01271_ Lgt. Ion Engine fries itself beyond repair. 01280_ S-10 Pest destroyed. 01289_ Lgt. Assault Rifle fries itself beyond repair. 01290_ Lgt. Ion Engine fries itself beyond repair. 01291_ Acquired 16 matter. 01294_ Acquired 15 matter. 01369_ Acquired 7 matter. 01381_ Sub. Power Source shoots sparks and powers down. 01409_ Subatomizers dissect the Disposable Heat Sink. 01409_ Acquired 2 matter. 01471_ Machine disabled. 01490_ Destroyed Autobeam. 01490_ Autobeam Turret knocked back. 01493_ The unstable cave ceiling collapses. 01493_ Crushed by falling debris. Map ----- +----------------------------------------------------+ | ?????## ##???#!! #???????? | | ?????# ##????# " #???????? | | ?????# #?????#""##" #???????? | | ?????## #### ##????#"""""##???????? | | ??????## ##??## ## #????####"##????????? | | ???????# ##???# ### ##?????#"<#?????????? | | ???????# #??## ### #?????##"#?????????? | | ???????## #### ##?# ##????##"##????????? | | ????????#### #?## #????#"#"#????????? | | ?????###### #### ###?##""#"#???????? | | ?????# ### ##""###"#"""#??????? | | ??#### ## #### ##?#""#"#####""#????? | | ?## ### ## #???###??#"#""#""#?###????? | | ## ######### #????????#""""#"##????????? | | ## ##### ##???????##""#"#"#????????? | | ## ## ##???????###"""###???????? | | ### #?????????###"# ##??????? | | # ### #??????????#"#"###??????? | | ## ## ##??????????#"## #??????? | | ?#### ## ##???????????#" ##??????? | | ????## #### ##?????????### #???????? | | ?????## #??#### ###???????# #???????? | | ??????## #####?## #???????# #???????? | | ???????### #??## #?????### #???????? | | ?????????#" #???## ##?????# ##???????? | | ?????????### #????##@#?????# #????????? | | ???????????## #????#" "????# #####????? | | ??????? #???# "??### ##???? | | ??# ?# "#??## #???? | | ??# ## ## # % % %#??# #???? | | ????????######## t >#?# #???? | | ????????????????# "" t""##?## #???? | | ?????????????????# ""## "#???# #???? | | ?????????????????? ## "#?### #???? | | ?????????????????? #" ""??# # ##??? | | ??????????????????? ########??# # #??? | | ??????????????????? ##?????????# ###??? | | ??????????????????? ##??????????# ### ## #???? | | ????????????????????#???????????## ??#### ##???? | | ?????????????????????????????????####???## ##???? | | ??????????????????????????????????## ### #???? | | ??????????????????????????????????# # #???? | | ??????????????????????????????????# #???? | | ?????????????????????????????? ### # #???? | | ?????????????????????????????# ?# ##??? | | ?????????????????????????????# ### #??? | | ????????????????????????????# #??? | | ???????????????????????????? ## #??? | | ???????????????????????????? ## ????## #??? | | ????????????????????????????????###??????## #??? | +----------------------------------------------------+ Best States ------------- Heat Dissipation 25 Energy Generation 15 Energy Capacity 250 Matter Stores 300 Matter Capacity 300 Sight Range 16 Terrain Scan Density 10 Evasion (%) 40 Targeting Accuracy 5 Recoil Reduction 2 Item Schematics ----------------- None Robot Schematics ------------------ None Fabricated ------------ Nothing Repaired ---------- Nothing Studied --------- None Alien Tech Used ----------------- None Achievements -------------- None Challenges ------------ None Game ------ Seed QuantumTransmissionBallwheel Manual? 0 Play Time 00:14:26 Cumulative 46.0 hours Start 2026.06.28 @ 01:56:23 End 2026.06.28 @ 12:34:28 Sessions 3 Manual Loads 0 Difficulty Rogue Special Mode None Game No. 66 Rogue 34 Adventurer 32 Explorer 0 Win Type - Total 0 Types 0/0/0/0/0/0/0/0/0/0 Lore% 17 Gallery% 23 Achievement% 18 Wizard Run 0 Options --------- Layout 1 ASCII 0 Keyboard 0 Movement Numpad Keybinds 0 Fullscreen 1 Font 24/Smallcaps Map View 50x35 Zoom Use 0% Tactical HUD 1 Map Filters NONE Filters NONE Steam 1 RUN: 1f4503ca-7738-4dd1-a725-f7c4bd896dfd